bitfinex-derivatives/quotes_BTCF0:USTF0_20250417
["timestamp","ask_amount","ask_price","bid_price","bid_amount"]
[1744929231822,0.1177601,85044.0,85043.0,0.21521025]
[1744929235123,0.1177601,85044.0,85043.0,0.20362084]
[1744929235517,0.1495601,85044.0,85043.0,0.20362084]
[1744929236427,0.1495601,85044.0,85043.0,0.1874852]
[1744929241638,0.1495601,85044.0,85043.0,0.0699]
[1744929241844,0.1495601,85044.0,85043.0,0.039]
[1744929242142,0.1809601,85044.0,85043.0,0.1565852]
[1744929242733,0.5417601,85044.0,85043.0,0.1565852]
[1744929243846,0.5103601,85044.0,85043.0,0.1878852]
[1744929244842,0.1495601,85044.0,85043.0,0.1878852]
[1744929247944,0.1823601,85044.0,85043.0,0.1878852]
[1744929248541,0.1495601,85044.0,85043.0,0.1878852]
[1744929250838,0.1818601,85044.0,85043.0,0.1878852]
[1744929251036,0.1495601,85044.0,85043.0,0.1878852]
[1744929252345,0.1818601,85044.0,85043.0,0.1878852]
[1744929257551,0.1818601,85044.0,85043.0,0.1565852]
[1744929260448,0.1818601,85044.0,85043.0,0.1235852]
[1744929262850,0.1818601,85044.0,85043.0,0.006]
[1744929263953,0.1818601,85044.0,85043.0,0.1235852]
[1744929264453,0.1818601,85044.0,85043.0,0.006]
[1744929269861,0.1818601,85044.0,85043.0,0.1235852]
[1744929270760,0.5426601,85044.0,85043.0,0.1235852]
[1744929273061,0.5426601,85044.0,85043.0,0.006]
[1744929274649,0.5426601,85044.0,85043.0,0.1235852]
[1744929275863,0.5426601,85044.0,85043.0,0.1535852]
[1744929276565,0.1818601,85044.0,85043.0,0.1535852]
[1744929276863,0.5426601,85044.0,85043.0,0.1535852]
[1744929277063,0.1818601,85044.0,85043.0,0.1535852]
[1744929277262,0.5426601,85044.0,85043.0,0.1535852]
[1744929277455,0.1818601,85044.0,85043.0,0.1535852]
[1744929277654,0.5426601,85044.0,85043.0,0.1535852]
[1744929280269,0.1818601,85044.0,85043.0,0.1535852]
[1744929283369,0.1818601,85044.0,85043.0,0.036]
[1744929284769,0.1818601,85044.0,85043.0,0.1535852]
[1744929289268,0.1818601,85044.0,85043.0,0.1835852]
[1744929300680,0.1818601,85044.0,85043.0,0.036]
[1744929300873,0.1818601,85044.0,85043.0,0.006]
[1744929302380,0.1818601,85044.0,85034.0,0.2520066]
[1744929302381,0.1175962,85035.0,85034.0,0.2520066]
[1744929302578,0.4783962,85035.0,85034.0,8e-05]
[1744929302783,0.1176031,85030.0,85025.0,0.3608]
[1744929302978,0.1176031,85030.0,85027.0,0.1177835]
[1744929303178,0.1176031,85030.0,85029.0,0.24549478]
[1744929303571,0.1503031,85030.0,85029.0,0.24549478]
[1744929304288,0.1503031,85030.0,85029.0,0.24557478]
[1744929306982,0.1176031,85030.0,85029.0,0.1236845]
[1744929307182,0.1176031,85030.0,85029.0,0.00608]
[1744929307586,0.1176031,85030.0,85029.0,0.07028]
[1744929310082,0.1176031,85030.0,85029.0,0.067248]
[1744929310582,0.1506031,85030.0,85029.0,0.067248]
[1744929319193,0.1506031,85030.0,85029.0,0.034948]
[1744929322896,0.1836031,85030.0,85029.0,0.034948]
[1744929328905,0.1836031,85030.0,85029.0,0.067548]
[1744929331111,0.1176059,85028.0,85027.0,0.0001763]
[1744929331504,0.25,85028.0,85019.0,0.3608]
[1744929331705,0.1176433,85001.0,84985.0,0.07288]
[1744929331909,0.117646,84999.0,84998.0,0.03329683]
[1744929332095,0.117653,84994.0,84986.0,0.00892057]
[1744929332295,0.478453,84994.0,84987.0,0.0303]
[1744929332596,0.117664,84986.0,84985.0,0.07288]
[1744929332906,0.1176723,84980.0,84979.0,0.4170131]
[1744929333105,0.1176723,84980.0,84958.0,0.00884469]
[1744929333106,0.3608,84980.0,84958.0,0.00884469]
[1744929333309,0.3608,84980.0,84954.0,0.65262541]
[1744929333310,0.4784987,84961.0,84960.0,0.59637556]
[1744929333805,0.4784987,84961.0,84960.0,0.59645556]
[1744929334201,0.4784987,84961.0,84960.0,0.60245556]
[1744929334799,0.4784987,84961.0,84960.0,0.72015556]
[1744929336005,0.4784987,84961.0,84960.0,0.60245556]
[1744929336606,0.4784987,84961.0,84960.0,0.63495556]
[1744929336802,0.4784987,84961.0,84960.0,0.75265556]
[1744929338301,0.4784987,84961.0,84960.0,0.15628]
[1744929341098,0.4784987,84961.0,84960.0,0.1562]
[1744929341712,0.5096987,84961.0,84960.0,0.1562]
[1744929343609,0.4784987,84961.0,84960.0,0.1562]
[1744929349117,0.5111987,84961.0,84960.0,0.1562]
[1744929350219,0.5111987,84961.0,84960.0,0.1237]
[1744929353522,0.5111987,84961.0,84945.0,0.1906408]
[1744929353523,0.1177194,84946.0,84945.0,0.1906408]
[1744929353718,0.4785194,84946.0,84945.0,0.30083763]
[1744929354016,0.3608,84946.0,84945.0,0.30083763]
[1744929354217,0.3608,84946.0,84945.0,0.30683763]
[1744929354521,0.058859,84948.0,84947.0,0.117718]
[1744929354721,0.058859,84948.0,84947.0,0.187718]
[1744929355114,0.058859,84948.0,84947.0,0.193718]
[1744929356313,0.058859,84948.0,84947.0,0.20577578]
[1744929356712,0.058859,84948.0,84947.0,0.193718]
[1744929356917,0.058859,84948.0,84947.0,0.224618]
[1744929358214,0.058859,84948.0,84947.0,0.257618]
[1744929360326,0.058859,84948.0,84947.0,0.187618]
[1744929360728,0.058859,84948.0,84947.0,0.154618]
[1744929362327,0.058859,84948.0,84947.0,0.123718]
[1744929366225,0.419659,84948.0,84947.0,0.123718]
[1744929367638,0.419659,84948.0,84947.0,0.153718]
[1744929369936,0.058859,84948.0,84947.0,0.153718]
[1744929370139,0.419659,84948.0,84947.0,0.153718]
[1744929375054,0.419659,84948.0,84947.0,0.123718]
[1744929375553,0.483559,84948.0,84947.0,0.123718]
[1744929379256,0.60340562,84948.0,84947.0,0.123718]
[1744929381145,0.60340562,84948.0,84947.0,0.006]
[1744929381350,0.1177208,84945.0,84944.0,0.07304]
[1744929381550,0.1177208,84945.0,84944.0,0.1907622]
[1744929382245,0.1177208,84945.0,84944.0,0.1967622]
[1744929383259,0.1177208,84945.0,84944.0,0.1237222]
[1744929384057,0.4785208,84945.0,84944.0,0.1237222]
[1744929384852,0.0639,84948.0,84945.0,0.0588597]
[1744929385056,0.2404767,84948.0,84947.0,0.117718]
[1744929386055,0.2404767,84948.0,84947.0,0.123718]
[1744929386260,0.1227587,84948.0,84947.0,0.186218]
[1744929386450,0.0324,84948.0,84947.0,0.186218]
[1744929386757,0.0324,84948.0,84947.0,0.236218]
[1744929386958,0.1177127,84951.0,84950.0,0.1177139]
[1744929387145,0.1507127,84951.0,84950.0,0.1237139]
[1744929390059,0.1840127,84951.0,84950.0,0.1237139]
[1744929391659,0.1507127,84951.0,84950.0,0.1637139]
[1744929392851,0.1830127,84951.0,84950.0,0.1637139]
[1744929395767,0.0653,84951.0,84950.0,0.1637139]
[1744929395965,0.1830125,84951.0,84950.0,0.1637139]
[1744929397556,0.0653,84951.0,84950.0,0.1637139]
[1744929397757,0.1830125,84951.0,84950.0,0.1637139]
[1744929397956,0.1830125,84951.0,84950.0,0.1939139]
[1744929399472,0.1830125,84951.0,84950.0,0.2670339]
[1744929399663,0.033,84951.0,84950.0,0.2670339]
[1744929399862,0.033,84951.0,84950.0,0.2998339]
[1744929400257,0.11974149,84953.0,84952.0,0.1177111]
[1744929400460,0.11974149,84953.0,84952.0,0.3577111]
[1744929400662,0.11974149,84953.0,84952.0,0.4209111]
[1744929401168,0.11974149,84953.0,84952.0,0.4269111]
[1744929402562,0.15134149,84953.0,84952.0,0.4269111]
[1744929402763,0.15134149,84953.0,84952.0,0.3941111]
[1744929404072,0.15134149,84953.0,84952.0,0.3637111]
[1744929404372,0.0316,84953.0,84952.0,0.3637111]
[1744929406472,0.0316,84953.0,84952.0,0.4368311]
[1744929407661,0.0316,84953.0,84952.0,0.4369111]
[1744929407662,0.0648,84953.0,84952.0,0.4369111]
[1744929413876,0.0648,84953.0,84952.0,0.4687111]
[1744929414270,0.0648,84953.0,84952.0,0.4369111]
[1744929416972,0.0648,84953.0,84952.0,0.5020111]
[1744929418080,0.0648,84953.0,84952.0,0.4690111]
[1744929422583,0.0648,84953.0,84952.0,0.4369111]
[1744929424586,0.0648,84953.0,84952.0,0.2269111]
[1744929425284,0.0648,84953.0,84952.0,0.2268311]
[1744929425487,0.0648,84953.0,84952.0,0.2269111]
[1744929432291,0.1825097,84953.0,84952.0,0.0792]
[1744929432685,0.1825097,84953.0,84952.0,0.07912]
[1744929432891,0.1825097,84953.0,84952.0,0.0792]
[1744929433090,0.1825097,84953.0,84952.0,0.0732]
[1744929433995,0.1825097,84953.0,84952.0,8e-05]
[1744929434995,0.1825097,84953.0,84952.0,0.1177911]
[1744929437795,0.9041097,84953.0,84952.0,0.1177911]
[1744929438196,0.9041097,84953.0,84952.0,0.1237911]
[1744929440098,0.9041097,84953.0,84952.0,0.1177911]
[1744929441098,0.9041097,84953.0,84952.0,0.1237911]
[1744929441288,0.9041097,84953.0,84952.0,0.00608]
[1744929442797,0.117718,84947.0,84946.0,0.07292]
[1744929442989,0.117718,84947.0,84946.0,0.1906394]
[1744929443190,0.117718,84947.0,84946.0,0.1966394]
[1744929443785,0.183518,84947.0,84946.0,0.1966394]
[1744929445003,0.544318,84947.0,84946.0,0.07892]
[1744929445494,0.183518,84947.0,84946.0,0.07892]
[1744929445696,0.1177264,84941.0,84940.0,0.0001458]
[1744929445998,0.4785264,84941.0,84940.0,0.0001458]
[1744929446192,0.1177319,84937.0,84936.0,0.1177323]
[1744929446392,0.1177319,84937.0,84936.0,0.1777323]
[1744929447190,0.1177319,84937.0,84936.0,0.1837323]
[1744929447388,0.1492319,84937.0,84936.0,0.1837323]
[1744929449002,0.1492319,84937.0,84936.0,0.1837333]
[1744929450098,0.1492319,84937.0,84936.0,0.066]
[1744929451497,0.1492319,84937.0,84936.0,0.1837333]
[1744929451897,0.1492319,84937.0,84936.0,0.1237333]
[1744929453701,0.5100319,84937.0,84936.0,0.006]
[1744929454908,0.5100319,84937.0,84936.0,0.00608]
[1744929456694,0.5100319,84937.0,84936.0,0.006]
[1744929456900,0.1177444,84928.0,84927.0,0.07292]
[1744929457100,0.4785444,84928.0,84927.0,0.2206658]
[1744929457302,0.4785444,84928.0,84927.0,0.2533658]
[1744929457495,0.4785444,84928.0,84927.0,0.2534458]
[1744929458099,0.4785444,84928.0,84927.0,0.2594458]
[1744929458499,0.4785444,84928.0,84927.0,0.2294458]
[1744929461507,0.4785444,84928.0,84927.0,0.2394458]
[1744929463014,0.3608,84928.0,84927.0,0.2394458]
[1744929463199,0.1177436,84929.0,84928.0,0.117743]
[1744929463405,0.1177436,84929.0,84928.0,0.211643]
[1744929463605,0.1177436,84929.0,84928.0,0.244743]
[1744929463606,0.1506436,84929.0,84928.0,0.244743]
[1744929464206,0.1506436,84929.0,84928.0,0.250743]
[1744929470813,0.5114436,84929.0,84928.0,0.250743]
[1744929472117,0.5114436,84929.0,84928.0,0.036]
[1744929472307,0.5442436,84929.0,84928.0,0.0663]
[1744929472509,0.5442436,84929.0,84928.0,0.06638]
[1744929473708,0.5442436,84929.0,84928.0,0.1841244]
[1744929473916,0.5442436,84929.0,84928.0,0.1538244]
[1744929474111,0.5764436,84929.0,84928.0,0.1538244]
[1744929478812,0.2156436,84929.0,84928.0,0.1538244]
[1744929479016,0.5764436,84929.0,84928.0,0.1538244]
[1744929479613,0.5764436,84929.0,84928.0,0.1238244]
[1744929481321,0.5764436,84929.0,84928.0,0.1338244]
[1744929481919,0.5764436,84929.0,84928.0,0.1238244]
[1744929483821,0.2156436,84929.0,84928.0,0.1238244]
[1744929484028,0.5764436,84929.0,84928.0,0.1238244]
[1744929484826,0.2156436,84929.0,84928.0,0.1238244]
[1744929485026,0.5764436,84929.0,84928.0,0.1238244]
[1744929485221,0.2156436,84929.0,84928.0,0.1238244]
[1744929485421,0.5764436,84929.0,84928.0,0.1238244]
[1744929485821,0.5442436,84929.0,84928.0,0.1563244]
[1744929489426,0.1834436,84929.0,84928.0,0.2963244]
[1744929490226,0.3608,84942.0,84934.0,0.0588675]
[1744929490426,0.14956043,84938.0,84937.0,0.1765972]
[1744929490626,0.14956043,84938.0,84937.0,0.4870972]
[1744929490826,0.14956043,84938.0,84937.0,2.0188972]
[1744929491220,0.14956043,84938.0,84937.0,2.0248972]
[1744929491824,0.0325,84940.0,84939.0,0.1177291]
[1744929492031,0.0325,84940.0,84939.0,0.4308491]
[1744929492233,0.0325,84940.0,84939.0,0.4368491]
[1744929493226,0.17948024,84946.0,84945.0,0.1177208]
[1744929493519,0.17948024,84946.0,84945.0,0.3877208]
[1744929494131,0.17948024,84946.0,84945.0,0.4254208]
[1744929494834,0.0319,84948.0,84947.0,0.117718]
[1744929495035,0.0319,84948.0,84947.0,0.377718]
[1744929495235,0.0319,84948.0,84947.0,0.383718]
[1744929498435,0.1811167,84948.0,84947.0,0.123798]
[1744929504139,0.1811167,84948.0,84947.0,0.196918]
[1744929504740,0.5419167,84948.0,84947.0,0.226918]
[1744929505642,0.1811167,84948.0,84947.0,0.226918]
[1744929505834,0.5419167,84948.0,84947.0,0.226918]
[1744929506336,0.1811167,84948.0,84947.0,0.226918]
[1744929506541,0.5419167,84948.0,84947.0,0.226918]
[1744929507541,0.5419167,84948.0,84947.0,0.2389385]
[1744929508333,0.5419167,84948.0,84947.0,0.226918]
[1744929512044,0.1811167,84948.0,84947.0,0.226918]
[1744929512250,0.5419167,84948.0,84947.0,0.226918]
[1744929512748,0.1811167,84948.0,84947.0,0.226918]
[1744929512945,0.5419167,84948.0,84947.0,0.226918]
[1744929513245,0.1811167,84948.0,84947.0,0.226918]
[1744929513447,0.5419167,84948.0,84947.0,0.226918]
[1744929513647,0.1811167,84948.0,84947.0,0.226918]
[1744929513848,0.5419167,84948.0,84947.0,0.226918]
[1744929514037,0.1811167,84948.0,84947.0,0.226918]
[1744929514234,0.5419167,84948.0,84947.0,0.226918]
[1744929514858,0.5419167,84948.0,84947.0,0.196918]
[1744929517557,0.5419167,84948.0,84947.0,0.0792]
[1744929518255,0.5419167,84948.0,84947.0,0.07912]
[1744929518651,0.5419167,84948.0,84947.0,0.006]
[1744929519053,0.5419167,84948.0,84947.0,0.00608]
[1744929519249,0.5419167,84948.0,84947.0,0.123718]
[1744929519453,0.5419167,84948.0,84947.0,0.123798]
[1744929520962,0.1811167,84948.0,84947.0,0.123798]
[1744929521166,0.9027167,84948.0,84947.0,0.123798]
[1744929523461,0.5419167,84948.0,84947.0,0.155998]
[1744929525974,0.66157573,84948.0,84947.0,0.155998]
[1744929526375,0.66157573,84948.0,84947.0,0.03828]
[1744929526674,0.66157573,84948.0,84947.0,0.00608]
[1744929529875,0.66157573,84948.0,84947.0,0.123798]
[1744929531576,0.30077573,84948.0,84947.0,0.123798]
[1744929531775,0.66157573,84948.0,84947.0,0.123798]
[1744929532282,0.66157573,84948.0,84947.0,0.188098]
[1744929532882,0.66157573,84948.0,84947.0,0.156998]
[1744929534377,0.30077573,84948.0,84947.0,0.156998]
[1744929534678,0.66157573,84948.0,84947.0,0.156998]
[1744929536975,0.66157573,84948.0,84947.0,0.187798]
[1744929539284,0.59817573,84948.0,84947.0,0.187798]
[1744929540276,0.62877573,84948.0,84947.0,0.187798]
[1744929540575,0.65937573,84948.0,84947.0,0.187798]
[1744929540987,0.5397167,84948.0,84947.0,0.187798]
[1744929543482,0.5397167,84948.0,84947.0,0.187798]
[1744929552696,0.5397167,84948.0,84947.0,0.156998]
[1744929554891,0.5397167,84948.0,84947.0,0.123798]
[1744929555096,0.5703167,84948.0,84947.0,0.123798]
[1744929560198,0.5703167,84948.0,84947.0,0.123718]
[1744929560401,0.5703167,84948.0,84947.0,0.123798]
[1744929560599,0.5703167,84948.0,84947.0,0.156598]
[1744929560898,0.5397167,84948.0,84947.0,0.156598]
[1744929564505,0.1789167,84948.0,84947.0,0.156598]
[1744929564701,0.5397167,84948.0,84947.0,0.156598]
[1744929568295,0.5397167,84948.0,84947.0,0.123798]
[1744929569207,0.5397167,84948.0,84947.0,0.123718]
[1744929569397,0.5397167,84948.0,84947.0,0.123798]
[1744929569597,0.5397167,84948.0,84947.0,0.155198]
[1744929570807,0.73794313,84948.0,84947.0,0.155198]
[1744929574201,0.73794313,84948.0,84947.0,0.123798]
[1744929574707,0.73794313,84948.0,84947.0,0.006]
[1744929574708,0.5397167,84948.0,84947.0,0.006]
[1744929574901,0.5397167,84948.0,84947.0,0.00608]
[1744929575097,0.5397167,84948.0,84947.0,0.006]
[1744929575297,0.1177208,84945.0,84944.0,0.1177213]
[1744929576115,0.1177208,84945.0,84944.0,0.1237213]
[1744929576609,0.1795208,84945.0,84944.0,0.1237213]
[1744929577310,0.5403208,84945.0,84944.0,0.1237213]
[1744929577513,0.1795208,84945.0,84944.0,0.1237213]
[1744929577711,0.5403208,84945.0,84944.0,0.1237213]
[1744929579306,0.1795208,84945.0,84944.0,0.1237213]
[1744929579510,0.5403208,84945.0,84944.0,0.1237213]
[1744929579813,0.1795208,84945.0,84944.0,0.1237213]
[1744929580005,0.5403208,84945.0,84944.0,0.1567213]
[1744929581608,0.4226,84945.0,84944.0,0.1886213]
[1744929581810,0.5403208,84945.0,84944.0,0.2196213]
[1744929584514,0.1795208,84945.0,84944.0,0.2196213]
[1744929584814,0.5403208,84945.0,84944.0,0.1886213]
[1744929587115,0.5403208,84945.0,84944.0,0.1567213]
[1744929587716,0.5403208,84945.0,84944.0,0.039]
[1744929587916,0.5403208,84945.0,84944.0,0.1567222]
[1744929588526,0.5403208,84945.0,84944.0,0.1568022]
[1744929592223,0.1795208,84945.0,84944.0,0.1568022]
[1744929592413,0.5403208,84945.0,84944.0,0.1568022]
[1744929597825,0.1795208,84945.0,84944.0,0.1568022]
[1744929598226,0.5403208,84945.0,84944.0,0.1568022]
[1744929601540,0.1795208,84945.0,84944.0,0.1568022]
[1744929601740,0.5403208,84945.0,84944.0,0.1568022]
[1744929603243,0.5403208,84945.0,84944.0,0.03908]
[1744929604841,0.5403208,84945.0,84944.0,0.1568022]
[1744929605235,0.1795208,84945.0,84944.0,0.1568022]
[1744929605443,0.5403208,84945.0,84944.0,0.1568022]
[1744929608241,0.1795208,84945.0,84944.0,0.1568022]
[1744929608433,0.5403208,84945.0,84944.0,0.1568022]
[1744929615047,0.5403208,84945.0,84944.0,0.03908]
[1744929617650,0.5403208,84945.0,84944.0,0.1568022]
[1744929623553,0.5403208,84945.0,84944.0,0.03908]
[1744929624654,0.5403208,84945.0,84944.0,0.1568022]
[1744929625755,0.1795208,84945.0,84944.0,0.1568022]
[1744929625955,0.5403208,84945.0,84944.0,0.1568022]
[1744929626454,0.1795208,84945.0,84944.0,0.1568022]
[1744929626755,0.5403208,84945.0,84944.0,0.1568022]
[1744929628843,0.4785208,84945.0,84944.0,0.1568022]
[1744929629042,0.4785208,84945.0,84944.0,0.1896022]
[1744929630048,0.14957379,84948.0,84947.0,0.117718]
[1744929630249,0.26729049,84948.0,84947.0,0.117718]
[1744929630552,0.14957379,84948.0,84947.0,0.117718]
[1744929630746,0.26729049,84948.0,84947.0,0.117718]
[1744929630948,0.26729049,84948.0,84947.0,0.178418]
[1744929631158,0.26729049,84948.0,84947.0,0.184418]
[1744929631748,0.1177167,84948.0,84947.0,0.184418]
[1744929636858,0.00017651,84949.0,84948.0,0.1177167]
[1744929637058,0.11789181,84949.0,84948.0,0.1860167]
[1744929639349,0.14869181,84949.0,84948.0,0.1860167]
[1744929640453,0.17909181,84949.0,84948.0,0.1860167]
[1744929641260,0.17909181,84949.0,84948.0,0.1546167]
[1744929643164,0.53989181,84949.0,84948.0,0.1546167]
[1744929645164,0.17909181,84949.0,84948.0,0.1546167]
[1744929645366,0.53989181,84949.0,84948.0,0.1546167]
[1744929645551,0.17909181,84949.0,84948.0,0.1546167]
[1744929645755,0.53989181,84949.0,84948.0,0.1546167]
[1744929645962,0.17909181,84949.0,84948.0,0.1546167]
[1744929646164,0.53989181,84949.0,84948.0,0.1546167]
[1744929646565,0.17909181,84949.0,84948.0,0.1546167]
[1744929646868,0.53989181,84949.0,84948.0,0.1546167]
[1744929648858,0.17909181,84949.0,84948.0,0.1546167]
[1744929649058,0.53989181,84949.0,84948.0,0.1546167]
[1744929651067,0.17909181,84949.0,84948.0,0.1546167]
[1744929651368,0.53989181,84949.0,84948.0,0.1546167]
[1744929652069,0.17909181,84949.0,84948.0,0.1546167]
[1744929652568,0.53989181,84949.0,84948.0,0.1546167]
[1744929653169,0.53989181,84949.0,84948.0,0.2275367]
[1744929657273,0.17909181,84949.0,84948.0,0.2275367]
[1744929657463,0.53989181,84949.0,84948.0,0.2275367]
[1744929657664,0.53989181,84949.0,84948.0,0.1966367]
[1744929658567,0.53989181,84949.0,84948.0,0.1967167]
[1744929662375,0.53989181,84949.0,84948.0,0.2284167]
[1744929665375,0.06137651,84949.0,84948.0,0.2284167]
[1744929665570,0.06137651,84949.0,84948.0,0.2595167]
[1744929665973,0.17909181,84949.0,84948.0,0.2595167]
[1744929672786,0.53989181,84949.0,84948.0,0.2595167]
[1744929673086,0.42217651,84949.0,84948.0,0.2595167]
[1744929673484,0.53989181,84949.0,84948.0,0.2595167]
[1744929673990,0.42217651,84949.0,84948.0,0.2595167]
[1744929675988,0.36097651,84949.0,84948.0,0.2595167]
[1744929678891,0.00017651,84949.0,84948.0,0.2595167]
[1744929680085,0.08981455,84949.0,84948.0,0.2595167]
[1744929681090,0.08981455,84949.0,84948.0,0.2895167]
[1744929681990,0.20752985,84949.0,84948.0,0.1537967]
[1744929682186,0.20752985,84949.0,84948.0,0.1967167]
[1744929682384,0.08981455,84949.0,84948.0,0.2383167]
[1744929682585,0.12101455,84949.0,84948.0,0.2383167]
[1744929683093,0.12101455,84949.0,84948.0,0.2283167]
[1744929683994,0.03137651,84949.0,84948.0,0.2283167]
[1744929686695,0.14909181,84949.0,84948.0,0.2283167]
[1744929688906,0.50989181,84949.0,84948.0,0.2283167]
[1744929690312,0.14909181,84949.0,84948.0,0.2283167]
[1744929690516,0.50989181,84949.0,84948.0,0.2283167]
[1744929691303,0.50989181,84949.0,84948.0,0.1967167]
[1744929693408,0.14909181,84949.0,84948.0,0.1967167]
[1744929693706,0.50989181,84949.0,84948.0,0.1967167]
[1744929695609,0.50989181,84949.0,84948.0,0.2273167]
[1744929696507,0.14909181,84949.0,84948.0,0.2273167]
[1744929696711,0.50989181,84949.0,84948.0,0.2273167]
[1744929698002,0.39217651,84949.0,84948.0,0.2273167]
[1744929698202,0.39217651,84949.0,84948.0,0.2605167]
[1744929698807,0.42447651,84949.0,84948.0,0.2605167]
[1744929699713,0.06367651,84949.0,84948.0,0.2605167]
[1744929699916,0.42447651,84949.0,84948.0,0.2605167]
[1744929701311,0.54404772,84949.0,84948.0,0.2605167]
[1744929701508,0.18324772,84949.0,84948.0,0.2605167]
[1744929701709,0.54404772,84949.0,84948.0,0.2605167]
[1744929702416,0.66176302,84949.0,84948.0,0.2605167]
[1744929702716,0.66176302,84949.0,84948.0,0.2273167]
[1744929705413,0.66176302,84949.0,84948.0,0.1967167]
[1744929709319,0.66176302,84949.0,84948.0,0.2287167]
[1744929709515,0.54219181,84949.0,84948.0,0.2287167]
[1744929710421,0.54219181,84949.0,84948.0,0.1967167]
[1744929712114,0.54219181,84949.0,84948.0,0.2288167]
[1744929717931,0.18139181,84949.0,84948.0,0.2288167]
[1744929718330,0.54219181,84949.0,84948.0,0.2288167]
[1744929718525,0.18139181,84949.0,84948.0,0.2288167]
[1744929718731,0.54219181,84949.0,84948.0,0.2288167]
[1744929719133,0.18139181,84949.0,84948.0,0.2288167]
[1744929719333,0.66176302,84949.0,84948.0,0.2288167]
[1744929721238,0.66176302,84949.0,84948.0,0.2611167]
[1744929721536,0.54404772,84949.0,84948.0,0.2611167]
[1744929723337,0.51174772,84949.0,84948.0,0.2611167]
[1744929725541,0.54194772,84949.0,84948.0,0.2611167]
[1744929728245,0.42237651,84949.0,84948.0,0.2611167]
[1744929729437,0.06157651,84949.0,84948.0,0.2611167]
[1744929732741,0.06157651,84949.0,84948.0,0.2288167]
[1744929732937,0.17929181,84949.0,84948.0,0.2288167]
[1744929733138,0.06157651,84949.0,84948.0,0.2288167]
[1744929737744,0.00017651,84949.0,84948.0,0.2288167]
[1744929738045,0.00017651,84949.0,84948.0,0.2620167]
[1744929738649,0.03317651,84949.0,84948.0,0.2620167]
[1744929738947,0.06347651,84949.0,84948.0,0.2620167]
[1744929755950,0.11959105,84961.0,84954.0,0.0588535]
[1744929756259,0.11959105,84961.0,84960.0,0.1177]
[1744929756451,0.11959105,84961.0,84960.0,0.33058]
[1744929757149,0.0324,84962.0,84961.0,0.1176987]
[1744929757357,0.0324,84962.0,84961.0,0.2576987]
[1744929757948,0.0324,84962.0,84961.0,0.1176987]
[1744929758149,0.0324,84962.0,84961.0,0.2776987]
[1744929761156,0.0324,84962.0,84961.0,0.28952108]
[1744929761357,0.0627,84962.0,84961.0,0.28952108]
[1744929767764,0.0627,84962.0,84961.0,0.1176987]
[1744929768262,0.0627,84962.0,84961.0,0.1498987]
[1744929771856,0.0954,84962.0,84961.0,0.1498987]
[1744929778482,0.0954,84962.0,84961.0,0.1498987]
[1744929779577,0.21496591,84962.0,84961.0,0.1498987]
[1744929783375,0.0954,84962.0,84961.0,0.1498987]
[1744929783980,0.2130973,84962.0,84961.0,0.1498987]
[1744929784180,0.2130973,84962.0,84961.0,0.1905787]
[1744929784687,0.2130973,84962.0,84961.0,0.1906587]
[1744929788187,0.2190973,84962.0,84961.0,0.1905787]
[1744929788386,0.2190973,84962.0,84961.0,0.1906587]
[1744929789284,0.2130973,84962.0,84961.0,0.1906587]
[1744929789478,0.58585749,84962.0,84961.0,0.07296]
[1744929789679,0.5738973,84962.0,84961.0,0.1905787]
[1744929789883,0.5738973,84962.0,84961.0,0.1906587]
[1744929794178,0.5738973,84962.0,84961.0,0.07296]
[1744929794576,0.2130973,84962.0,84961.0,0.07296]
[1744929794776,0.9346973,84962.0,84961.0,0.07296]
[1744929795181,0.1177056,84956.0,84955.0,0.000108]
[1744929795786,0.1177083,84954.0,84953.0,0.1177095]
[1744929796090,0.4785083,84954.0,84953.0,0.1177095]
[1744929796289,0.4785083,84954.0,84953.0,0.1501095]
[1744929796489,0.5398083,84954.0,84953.0,0.1501095]
[1744929797188,0.5398083,84954.0,84953.0,0.0324]
[1744929797393,0.5398083,84954.0,84953.0,0.1501097]
[1744929800292,0.65925506,84954.0,84953.0,0.1501097]
[1744929801593,0.5398083,84954.0,84953.0,0.1501097]
[1744929805100,0.65923114,84954.0,84953.0,0.1501097]
[1744929806601,0.5398083,84954.0,84953.0,0.1501097]
[1744929809905,0.1790083,84954.0,84953.0,0.1501097]
[1744929810098,0.5398083,84954.0,84953.0,0.1501097]
[1744929811904,0.1790083,84954.0,84953.0,0.1501097]
[1744929812310,0.5398083,84954.0,84953.0,0.1501097]
[1744929814109,0.5398083,84954.0,84953.0,0.1826097]
[1744929815501,0.65929243,84954.0,84953.0,0.1826097]
[1744929816204,0.65929243,84954.0,84953.0,0.0384]
[1744929816909,0.65929243,84954.0,84953.0,0.1561097]
[1744929817107,0.65929243,84954.0,84953.0,0.0324]
[1744929818111,0.65929243,84954.0,84953.0,0.0384]
[1744929818304,0.1790083,84954.0,84953.0,0.0384]
[1744929818501,0.5398083,84954.0,84953.0,0.0384]
[1744929819299,0.5398083,84954.0,84953.0,0.0324]
[1744929821804,0.1790083,84954.0,84953.0,0.0324]
[1744929822003,0.5398083,84954.0,84953.0,0.0324]
[1744929822512,0.1177097,84953.0,84952.0,1e-08]
[1744929822814,0.1177097,84953.0,84952.0,8.001e-05]
[1744929823111,0.1791097,84953.0,84952.0,8.001e-05]
[1744929824506,0.22776217,84953.0,84952.0,8.001e-05]
[1744929827514,0.94936217,84953.0,84952.0,8.001e-05]
[1744929828012,0.22776217,84953.0,84952.0,8.001e-05]
[1744929828315,0.94936217,84953.0,84952.0,8.001e-05]
[1744929828918,0.9007097,84953.0,84952.0,8.001e-05]
[1744929834715,0.1791097,84953.0,84952.0,8.001e-05]
[1744929834921,0.9007097,84953.0,84952.0,8.001e-05]
[1744929835122,1.05024435,84953.0,84952.0,8.001e-05]
[1744929835621,1.05024435,84953.0,84952.0,0.03288001]
[1744929837321,0.32864435,84953.0,84952.0,0.03288001]
[1744929837521,1.05024435,84953.0,84952.0,0.03288001]
[1744929839125,0.32864435,84953.0,84952.0,0.03288001]
[1744929839318,1.05024435,84953.0,84952.0,0.03288001]
[1744929841510,0.32864435,84953.0,84952.0,0.03288001]
[1744929841720,1.05024435,84953.0,84952.0,0.03288001]
[1744929842924,1.09889519,84953.0,84952.0,0.03288001]
[1744929846329,1.09889519,84953.0,84952.0,0.15059111]
[1744929846929,0.9007097,84953.0,84952.0,0.15059111]
[1744929849235,0.9007097,84953.0,84952.0,0.15659111]
[1744929850141,0.9007097,84953.0,84952.0,0.15059111]
[1744929852143,0.9007097,84953.0,84952.0,0.15659111]
[1744929854647,0.5399097,84953.0,84952.0,0.15659111]
[1744929854843,0.5089097,84953.0,84952.0,0.15659111]
[1744929855150,0.5089097,84953.0,84952.0,0.18859111]
[1744929857039,0.4785097,84953.0,84952.0,0.18859111]
[1744929860152,0.1177097,84953.0,84952.0,0.18859111]